fUSD/lending_fUSD_20240116
["ID","MTS","AMOUNT","RATE_DAILY","PERIOD"]
[311750817,1705375863519,-1914.32,0.0002298,2]
[311750818,1705375863529,-2792.98,0.0002298,2]
[311750819,1705375863538,-500.0,0.0002298,2]
[311750820,1705375863548,-2595.32,0.0002298,2]
[311750821,1705375863558,-4517.94,0.0002298,2]
[311750822,1705375863568,-658.46,0.0002298,2]
[311750823,1705375863578,-765.45,0.0002298,2]
[311750824,1705375863587,-1793.53,0.0002298,2]
[311750825,1705375863597,-2412.6,0.0002298,2]
[311750826,1705375863607,-1565.35,0.0002298,2]
[311750827,1705375863617,-1183.26,0.0002298,2]
[311750828,1705375863626,-500.0,0.0002298,2]
[311750829,1705375863636,-948.46,0.0002298,2]
[311750830,1705375863648,-762.39,0.0002298,2]
[311750831,1705375863660,-500.0,0.0002298,2]
[311750832,1705375863671,-3029.84,0.0002298,2]
[311750833,1705375863681,-843.82,0.0002298,2]
[311750834,1705375863690,-721.39,0.0002298,2]
[311750835,1705375863700,-555.69,0.0002298,2]
[311750836,1705375863710,-2005.8,0.0002298,2]
[311750837,1705375863719,-1111.09,0.0002298,2]
[311750838,1705375863729,-2546.91,0.0002298,2]
[311750839,1705375863738,-788.29,0.0002298,2]
[311750840,1705375863748,-702.57,0.0002298,2]
[311750841,1705375863758,-1534.98,0.0002298,2]
[311750842,1705375863867,-500.0,0.0002298,5]
[311750843,1705375863876,-2648.43,0.0002298,2]
[311750844,1705375863885,-2246.78,0.0002298,2]
[311750845,1705375863896,-2411.71,0.0002298,2]
[311750846,1705375863905,-13224.02,0.0002298,2]
[311750847,1705375863914,-856.33,0.0002298,2]
[311750848,1705375863923,-2302.37,0.00022981,2]
[311750849,1705375863933,-500.0,0.00022981,2]
[311750850,1705375863942,-500.0,0.00022981,2]
[311750851,1705375863951,-500.0,0.00022981,2]
[311750852,1705375863962,-500.0,0.00022981,2]
[311750853,1705375863971,-1192.19,0.00022981,2]
[311750854,1705375863981,-830.71,0.00022981,2]
[311750855,1705375863990,-792.38,0.00022981,2]
[311750856,1705375864000,-500.0,0.00022981,2]
[311750857,1705375864010,-850.13,0.00022981,2]
[311750858,1705375864019,-9565.76,0.00022981,2]
[311750859,1705375864028,-2111.49,0.00022981,2]
[311750860,1705375864038,-918.23,0.00022981,2]
[311750861,1705375864047,-937.69,0.00022981,2]
[311750862,1705375864056,-854.87,0.00022981,2]
[311750863,1705375864066,-929.43,0.00022981,2]
[311750864,1705375864075,-969.71,0.00022981,2]
[311750865,1705375864084,-926.0,0.00022981,2]
[311750866,1705375864094,-1158.27,0.00022981,2]
[311750867,1705375864103,-622.5,0.00022981,2]
[311750868,1705375864113,-500.0,0.00022981,2]
[311750869,1705375864122,-688.3,0.00022981,2]
[311750870,1705375864131,-1611.99,0.00022981,2]
[311750871,1705375864141,-363.65606664,0.00022981,2]
[311750872,1705375864150,-500.0,0.00022981,2]
[311750873,1705375864159,-500.0,0.00022981,2]
[311750874,1705375864169,-676.21,0.00022981,2]
[311750875,1705375864178,-500.0,0.00022981,2]
[311750876,1705375864187,-500.0,0.00022981,2]
[311750877,1705375864196,-1257.76,0.00022981,2]
[311750878,1705375864205,-171.59797576,0.00022981,2]
[311750879,1705375864214,-550.56,0.00022981,2]
[311750880,1705375864223,-2473.4,0.00022981,2]
[311750881,1705375864233,-500.0,0.00022981,2]
[311750882,1705375864243,-592.73,0.00022982,2]
[311750883,1705375864252,-348.94443941,0.00022982,2]
[311750884,1705375864261,-500.0,0.00022982,2]
[311750885,1705375864270,-500.0,0.00022982,2]
[311750886,1705375864280,-500.0,0.00022982,2]
[311750887,1705375864289,-678.11,0.00022982,2]
[311750888,1705375864298,-512.07,0.00022982,2]
[311750889,1705375864307,-537.36,0.00022982,2]
[311750890,1705375864317,-500.0,0.00022982,2]
[311750891,1705375864326,-500.0,0.00022982,2]
[311750892,1705375864335,-559.33,0.00022982,2]
[311750893,1705375864345,-500.0,0.00022982,2]
[311750894,1705375864354,-532.5054153,0.00022982,2]
[311750895,1705375864363,-500.0,0.00022982,2]
[311750896,1705375864373,-880.96,0.00022982,2]
[311750897,1705375864381,-485.0730041,0.00022982,2]
[311750898,1705375864391,-500.0,0.00022982,2]
[311750899,1705375864401,-1747.64,0.00022982,2]
[311750900,1705375864410,-510.69,0.00022982,2]
[311750901,1705375864420,-681.42,0.00022982,2]
[311750902,1705375864429,-810.39,0.00022982,2]
[311750903,1705375864439,-500.0,0.00022982,2]
[311750904,1705375864449,-500.0,0.00022982,2]
[311750905,1705375864459,-1343.44,0.00022982,2]
[311750906,1705375864469,-606.4,0.00022982,2]
[311750907,1705375864478,-605.97,0.00022982,2]
[311750908,1705375864488,-955.01,0.00022982,2]
[311750909,1705375864497,-500.0,0.00022982,2]
[311750910,1705375864507,-743.22,0.00022982,2]
[311750911,1705375864516,-570.92,0.00022982,2]
[311750912,1705375864526,-605.58,0.00022982,2]
[311750913,1705375864536,-594.1,0.00022982,2]
[311750914,1705375864545,-735.73,0.00022982,2]
[311750915,1705375864556,-500.0,0.00022982,2]
[311750916,1705375864565,-537.23,0.00022982,2]
[311750917,1705375864574,-600.83,0.00022982,2]
[311750918,1705375864583,-966.65,0.00022982,2]
[311750919,1705375864593,-500.0,0.00022982,5]
[311750920,1705375864602,-652.46,0.00022982,2]
[311750921,1705375864612,-656.27,0.00022982,2]
[311750922,1705375864621,-500.0,0.00022982,2]
[311750923,1705375864630,-6345.72,0.00022982,2]
[311750924,1705375864639,-502.31,0.00022982,2]
[311750925,1705375864649,-865.62,0.00022982,2]
[311750926,1705375864658,-9820.61,0.00022982,2]
[311750927,1705375864667,-533.54,0.00022982,2]
[311750928,1705375864676,-500.0,0.00022982,2]
[311750929,1705375864686,-2240.39,0.00022982,2]
[311750930,1705375864695,-1478.02,0.00022982,2]
[311750931,1705375864705,-647.86,0.00022982,2]
[311750932,1705375864715,-1278.22,0.00022982,2]
[311750933,1705375864724,-3961.12,0.00022982,2]
[311750934,1705375864734,-604.87,0.00022982,2]
[311750935,1705375864745,-5554.33,0.00022982,2]
[311750936,1705375864756,-1425.71,0.00022982,2]
[311750937,1705375864765,-791.83,0.00022982,2]
[311750938,1705375864775,-1218.15,0.00022982,2]
[311750939,1705375864785,-1227.22,0.00022982,2]
[311750940,1705375864794,-566.8,0.00022982,2]
[311750941,1705375864803,-512.27,0.00022982,2]
[311750942,1705375864812,-500.0,0.00022982,2]
[311750943,1705375864822,-1259.55,0.00022982,2]
[311750944,1705375864831,-500.0,0.00022982,2]
[311750945,1705375864840,-17246.35,0.00022982,2]
[311750946,1705375864850,-569.18,0.00022982,2]
[311750947,1705375864860,-1383.82,0.00022982,2]
[311750948,1705375864869,-950.02,0.00022982,2]
[311750949,1705375864879,-624.08,0.00022982,2]
[311750950,1705375864888,-922.5,0.00022982,2]
[311750951,1705375864898,-500.0,0.00022983,2]
[311750952,1705375864907,-500.0,0.00022983,2]
[311750953,1705375864917,-744.78,0.00022983,2]
[311750954,1705375864927,-500.0,0.00022983,2]
[311750955,1705375864936,-526.04,0.00022983,2]
[311750956,1705375864947,-500.0,0.00022983,2]
[311750957,1705375864959,-662.16,0.00022983,2]
[311750958,1705375864969,-500.0,0.00022983,2]
[311750959,1705375864980,-523.96,0.00022983,2]
[311750960,1705375864990,-500.0,0.00022983,2]
[311750961,1705375864999,-825.68,0.00022983,2]
[311750962,1705375865009,-678.04,0.00022983,2]
[311750963,1705375865019,-573.24,0.00022983,2]
[311750964,1705375865029,-595.23,0.00022983,2]
[311750965,1705375865039,-702.6,0.00022983,2]
[311750966,1705375865050,-551.59,0.00022983,2]
[311750967,1705375865060,-554.31,0.00022983,2]
[311750968,1705375865071,-500.0,0.00022983,2]
[311750969,1705375865082,-500.0,0.00022983,2]
[311750970,1705375865092,-500.0,0.00022983,2]
[311750971,1705375865103,-500.0,0.00022983,2]
[311750972,1705375865113,-500.0,0.00022983,2]
[311750973,1705375865125,-836.16,0.00022983,2]
[311750974,1705375865135,-654.83,0.00022983,2]
[311750975,1705375865145,-516.82,0.00022983,2]
[311750976,1705375865156,-500.0,0.00022983,2]
[311750977,1705375865166,-500.0,0.00022983,2]
[311750978,1705375865177,-500.0,0.00022983,2]
[311750979,1705375865187,-722.39,0.00022983,2]
[311750980,1705375865198,-500.0,0.00022983,2]
[311750981,1705375865213,-573.75,0.00022983,2]
[311750982,1705375865224,-500.0,0.00022983,2]
[311750983,1705375865234,-500.0,0.00022983,2]
[311750984,1705375865246,-525.12,0.00022983,2]
[311750985,1705375865256,-500.0,0.00022983,2]
[311750986,1705375865267,-582.73,0.00022983,2]
[311750987,1705375865277,-614.97,0.00022983,2]
[311750988,1705375865287,-500.0,0.00022983,2]
[311750989,1705375865298,-500.0,0.00022983,2]
[311750990,1705375865308,-500.0,0.00022983,2]
[311750991,1705375865318,-500.0,0.00022983,2]
[311750992,1705375865327,-500.0,0.00022983,2]
[311750993,1705375865337,-500.0,0.00022983,2]
[311750994,1705375865347,-523.33,0.00022983,2]
[311750995,1705375865357,-527.73,0.00022983,2]
[311750996,1705375865366,-554.1,0.00022983,2]
[311750997,1705375865377,-500.0,0.00022983,2]
[311750998,1705375865387,-512.79,0.00022983,2]
[311750999,1705375865398,-965.14,0.00022983,2]
[311751000,1705375865408,-500.0,0.00022983,2]
[311751001,1705375865418,-625.18,0.00022983,2]
[311751002,1705375865429,-593.38,0.00022983,2]
[311751003,1705375865439,-544.64,0.00022983,2]
[311751004,1705375865449,-500.0,0.00022983,2]
[311751005,1705375865464,-500.0,0.00022983,2]
[311751006,1705375865474,-543.0,0.00022983,2]
[311751007,1705375865484,-500.0,0.00022983,2]
[311751008,1705375865494,-500.0,0.00022983,2]
[311751009,1705375865504,-858.02,0.00022983,2]
[311751010,1705375865514,-500.0,0.00022983,2]
[311751011,1705375865523,-500.0,0.00022983,2]
[311751012,1705375865533,-612.78,0.00022983,2]
[311751013,1705375865544,-518.79,0.00022983,2]
[311751014,1705375865555,-500.0,0.00022983,2]
[311751015,1705375865566,-555.04,0.00022983,2]
[311751016,1705375865577,-696.15,0.00022983,2]
[311751017,1705375865587,-874.25,0.00022983,2]
[311751018,1705375865598,-500.0,0.00022983,2]
[311751019,1705375865608,-537.65,0.00022983,2]
[311751020,1705375865617,-1114.76,0.00022983,2]
[311751021,1705375865627,-503.26,0.00022983,2]
[311751022,1705375865638,-500.0,0.00022983,2]
[311751023,1705375865649,-801.7,0.00022983,2]
[311751024,1705375865659,-500.0,0.00022983,2]
[311751025,1705375865670,-608.06,0.00022983,2]
[311751026,1705375865680,-500.0,0.00022983,2]
[311751027,1705375865691,-956.26,0.00022983,2]
[311751028,1705375865701,-501.52,0.00022983,2]
[311751029,1705375865718,-2599.42,0.00022983,2]
[311751030,1705375865728,-1494.67,0.00022983,2]
[311751031,1705375865738,-500.0,0.00022983,2]
[311751032,1705375865748,-500.0,0.00022983,2]
[311751033,1705375865760,-2922.48,0.00022983,2]
[311751034,1705375865771,-1060.51,0.00022983,2]
[311751035,1705375865780,-500.0,0.00022983,2]
[311751036,1705375865791,-500.0,0.00022983,2]
[311751037,1705375865801,-3580.6,0.00022983,2]
[311751038,1705375865811,-1263.78,0.00022983,2]
[311751039,1705375865824,-1999.51,0.00022983,2]
[311751040,1705375865835,-500.0,0.00022983,2]
[311751041,1705375865845,-500.0,0.00022983,2]
[311751042,1705375865855,-500.0,0.00022983,2]
[311751043,1705375865865,-640.18,0.00022983,2]
[311751044,1705375865876,-1636.6,0.00022983,2]
[311751045,1705375865885,-568.92,0.00022983,2]
[311751046,1705375865895,-701.3,0.00022983,2]
[311751047,1705375865906,-559.46,0.00022983,2]
[311751048,1705375865916,-5881.5,0.00022983,2]
[311751049,1705375865926,-500.0,0.00022983,2]
[311751050,1705375865936,-1019.85,0.00022983,2]
[311751051,1705375865946,-500.0,0.00022983,2]
[311751052,1705375865960,-864.24,0.00022983,2]
[311751053,1705375865970,-1141.15,0.00022983,2]
[311751054,1705375865979,-500.0,0.00022983,2]
[311751055,1705375865990,-500.0,0.00022983,2]
[311751056,1705375866000,-559.85,0.00022983,2]
[311751057,1705375866011,-185.37,0.00022983,2]
[311751058,1705375866021,-500.0,0.00022983,2]
[311751059,1705375866031,-1175.71,0.00022983,2]
[311751060,1705375866041,-525.0,0.00022983,2]
[311751061,1705375866051,-502.71,0.00022983,2]
[311751062,1705375866060,-1624.71,0.00022983,2]
[311751063,1705375866070,-1038.56,0.00022983,2]
[311751064,1705375866080,-569.64,0.00022983,2]
[311751065,1705375866090,-685.65,0.00022983,2]
[311751066,1705375866100,-500.0,0.00022983,2]
[311751067,1705375866109,-882.52,0.00022983,2]
[311751068,1705375866119,-680.09,0.00022983,2]
[311751069,1705375866129,-950.01,0.00022983,2]
[311751070,1705375866138,-500.0,0.00022983,2]
[311751071,1705375866148,-579.71,0.00022983,2]
[311751072,1705375866158,-500.0,0.00022983,2]
[311751073,1705375866167,-500.0,0.00022983,2]
[311751074,1705375866177,-3455.63,0.00022983,2]
[311751075,1705375866187,-500.0,0.00022983,2]
[311751076,1705375866196,-802.9,0.00022983,2]
[311751077,1705375866209,-2253.83,0.00022983,2]
[311751078,1705375866219,-522.35,0.00022983,2]
[311751079,1705375866229,-2674.32,0.00022983,2]
[311751080,1705375866238,-151.0,0.00022983,7]
[311751081,1705375866248,-500.0,0.00022984,2]
[311751082,1705375866258,-500.0,0.00022984,2]
[311751083,1705375866267,-500.0,0.00022984,2]
[311751084,1705375866277,-500.0,0.00022984,2]
[311751085,1705375866286,-500.0,0.00022984,2]
[311751086,1705375866296,-500.0,0.00022984,2]
[311751087,1705375866305,-500.0,0.00022984,2]
[311751088,1705375866315,-500.0,0.00022984,2]
[311751089,1705375866324,-514.26,0.00022984,2]
[311751090,1705375866334,-500.0,0.00022984,2]
[311751091,1705375866344,-500.0,0.00022984,2]
[311751092,1705375866354,-500.0,0.00022984,2]
[311751093,1705375866364,-500.0,0.00022984,2]
[311751094,1705375866375,-500.0,0.00022984,2]
[311751095,1705375866384,-500.0,0.00022984,2]
[311751096,1705375866394,-500.0,0.00022984,2]
[311751097,1705375866403,-500.0,0.00022984,2]
[311751098,1705375866413,-500.0,0.00022984,2]
[311751099,1705375866422,-500.0,0.00022984,2]
[311751100,1705375866432,-500.0,0.00022984,2]
[311751101,1705375866442,-515.11,0.00022984,2]
[311751102,1705375866451,-507.12,0.00022984,2]
[311751103,1705375866462,-500.0,0.00022984,2]
[311751104,1705375866472,-522.72,0.00022984,2]
[311751105,1705375866483,-500.0,0.00022984,2]
[311751106,1705375866492,-500.0,0.00022984,2]
[311751107,1705375866501,-500.0,0.00022984,2]
[311751108,1705375866511,-500.0,0.00022984,2]
[311751109,1705375866521,-500.0,0.00022984,2]
[311751110,1705375866530,-266.7237726,0.00022984,2]
[311751111,1705375866540,-582.58,0.00022984,2]
[311751112,1705375866550,-500.0,0.00022984,2]
[311751113,1705375866559,-609.39,0.00022984,2]
[311751114,1705375866569,-773.5,0.00022984,2]
[311751115,1705375866578,-500.0,0.00022984,2]
[311751116,1705375866588,-500.0,0.00022984,2]
[311751117,1705375866598,-540.62,0.00022984,2]
[311751118,1705375866607,-500.0,0.00022984,2]
[311751119,1705375866617,-513.02,0.00022984,2]
[311751120,1705375866627,-779.78,0.00022984,2]
[311751121,1705375866636,-500.0,0.00022984,2]
[311751122,1705375866645,-500.0,0.00022984,2]
[311751123,1705375866655,-239.39503107,0.00022984,2]
[311751124,1705375866664,-583.49681121,0.00022984,2]
[311751125,1705375866673,-706.49,0.00022984,2]
[311751126,1705375866683,-500.0,0.00022984,2]
[311751127,1705375866692,-500.0,0.00022984,2]
[311751128,1705375866702,-691.76,0.00022984,2]
[311751129,1705375866712,-951.28,0.00022984,2]
[311751130,1705375866722,-600.37,0.00022984,2]
[311751131,1705375866731,-755.26,0.00022984,2]
[311751132,1705375866741,-500.0,0.00022984,2]
[311751133,1705375866750,-991.37,0.00022984,2]
[311751134,1705375866760,-500.0,0.00022984,2]
[311751135,1705375866769,-500.0,0.00022984,2]
[311751136,1705375866780,-659.74,0.00022984,2]
[311751137,1705375866789,-500.0,0.00022984,2]
[311751138,1705375866799,-840.38,0.00022984,2]
[311751139,1705375866809,-500.0,0.00022984,2]
[311751140,1705375866819,-742.1,0.00022984,2]
[311751141,1705375866828,-500.0,0.00022984,2]
[311751142,1705375866837,-594.01,0.00022984,2]
[311751143,1705375866847,-500.0,0.00022984,2]
[311751144,1705375866856,-696.41,0.00022984,2]
[311751145,1705375866866,-500.0,0.00022984,2]
[311751146,1705375866875,-1012.84,0.00022984,2]
[311751147,1705375866884,-1632.43,0.00022984,2]
[311751148,1705375866894,-500.0,0.00022984,2]
[311751149,1705375866903,-662.49,0.00022984,2]
[311751150,1705375866913,-602.9,0.00022984,2]
[311751151,1705375866923,-677.36,0.00022984,2]
[311751152,1705375866932,-500.0,0.00022984,2]
[311751153,1705375866942,-500.0,0.00022984,2]
[311751154,1705375866952,-563.53,0.00022984,2]
[311751155,1705375866963,-500.0,0.00022984,2]
[311751156,1705375866972,-556.63,0.00022984,2]
[311751157,1705375866981,-1296.8,0.00022984,2]
[311751158,1705375866991,-500.0,0.00022984,2]
[311751159,1705375867000,-500.0,0.00022984,2]
[311751160,1705375867009,-500.0,0.00022984,2]
[311751161,1705375867019,-599.15,0.00022984,2]
[311751162,1705375867028,-500.0,0.00022984,2]
[311751163,1705375867038,-743.71,0.00022984,2]
[311751164,1705375867047,-541.86,0.00022984,2]
[311751165,1705375867056,-500.0,0.00022984,2]
[311751166,1705375867066,-503.01,0.00022984,2]
[311751167,1705375867075,-529.1,0.00022984,2]
[311751168,1705375867085,-1104.48,0.00022984,2]
[311751169,1705375867094,-500.0,0.00022984,2]
[311751170,1705375867103,-500.0,0.00022984,2]
[311751171,1705375867113,-516.19,0.00022984,2]
[311751172,1705375867122,-561.35,0.00022984,2]
[311751173,1705375867131,-544.07,0.00022984,2]
[311751174,1705375867141,-500.0,0.00022984,2]
[311751175,1705375867151,-778.67,0.00022984,2]
[311751176,1705375867160,-587.65,0.00022984,2]
[311751177,1705375867170,-655.13,0.00022984,2]
[311751178,1705375867179,-500.0,0.00022984,2]
[311751179,1705375867189,-582.27,0.00022984,2]
[311751180,1705375867198,-500.0,0.00022984,2]
[311751181,1705375867208,-500.0,0.00022984,2]
[311751182,1705375867217,-619.18,0.00022984,2]
[311751183,1705375867227,-652.44,0.00022984,2]
[311751184,1705375867236,-500.0,0.00022984,2]
[311751185,1705375867246,-500.0,0.00022984,2]
[311751186,1705375867255,-565.32,0.00022984,2]
[311751187,1705375867264,-756.61,0.00022984,2]
[311751188,1705375867274,-602.32,0.00022984,2]
[311751189,1705375867283,-500.0,0.00022984,2]
[311751190,1705375867292,-500.0,0.00022984,2]
[311751191,1705375867301,-500.0,0.00022984,2]
[311751192,1705375867311,-500.0,0.00022984,2]
[311751193,1705375867321,-626.79,0.00022984,2]
[311751194,1705375867331,-500.0,0.00022984,2]
[311751195,1705375867340,-500.0,0.00022984,2]
[311751196,1705375867350,-500.0,0.00022984,2]
[311751197,1705375867360,-500.0,0.00022984,2]
[311751198,1705375867369,-500.0,0.00022984,2]
[311751199,1705375867379,-500.0,0.00022984,2]
[311751200,1705375867390,-500.0,0.00022984,2]
[311751201,1705375867399,-500.0,0.00022984,2]
[311751202,1705375867409,-500.0,0.00022984,2]
[311751203,1705375867418,-500.0,0.00022984,2]
[311751204,1705375867428,-500.0,0.00022984,2]
[311751205,1705375867439,-962.9,0.00022984,2]
[311751206,1705375867449,-500.0,0.00022984,2]
[311751207,1705375867459,-500.0,0.00022984,2]
[311751208,1705375867469,-526.92,0.00022984,2]
[311751209,1705375867479,-230.50973514,0.00022984,2]
[311751210,1705375867488,-500.0,0.00022984,2]
[311751211,1705375867498,-1012.83,0.00022984,2]
[311751212,1705375867508,-500.0,0.00022984,2]
[311751213,1705375867520,-595.3,0.00022984,2]
[311751214,1705375867529,-581.06,0.00022984,2]
[311751215,1705375867539,-500.0,0.00022984,2]
[311751216,1705375867549,-574.24,0.00022984,2]
[311751217,1705375867558,-500.0,0.00022984,2]
[311751218,1705375867568,-593.48,0.00022984,2]
[311751219,1705375867578,-500.0,0.00022984,2]
[311751220,1705375867587,-500.0,0.00022984,2]
[311751221,1705375867597,-500.0,0.00022984,2]
[311751222,1705375867607,-506.85,0.00022984,2]
[311751223,1705375867617,-731.7,0.00022984,2]
[311751224,1705375867627,-500.0,0.00022984,2]
[311751225,1705375867637,-194.947721,0.00022984,7]
[311751226,1705375867647,-151.0,0.00022984,2]
[311751227,1705375867657,-151.0,0.00022984,2]
[311751228,1705375867667,-151.0,0.00022985,7]
[311751229,1705375867678,-151.0,0.00022985,7]
[311751230,1705375867687,-151.0,0.00022985,7]
[311751231,1705375867697,-500.0,0.00022985,2]
[311751232,1705375867709,-500.0,0.00022985,2]
[311751233,1705375867719,-518.27,0.00022985,2]
[311751234,1705375867730,-500.0,0.00022985,2]
[311751235,1705375867740,-500.0,0.00022985,2]
[311751236,1705375867751,-500.0,0.00022985,2]
[311751237,1705375867760,-500.0,0.00022985,2]
[311751238,1705375867774,-583.89002186,0.00022985,2]
[311751239,1705375867783,-804.36,0.00022985,2]
[311751240,1705375867793,-500.0,0.00022985,2]
[311751241,1705375867803,-500.0,0.00022985,2]
[311751242,1705375867813,-500.0,0.00022985,2]
[311751243,1705375867825,-500.0,0.00022985,2]
[311751244,1705375867835,-564.47,0.00022985,2]
[311751245,1705375867845,-500.0,0.00022985,2]
[311751246,1705375867855,-500.0,0.00022985,2]
[311751247,1705375867865,-500.0,0.00022985,2]
[311751248,1705375867876,-500.0,0.00022985,2]
[311751249,1705375867886,-500.0,0.00022985,2]
[311751250,1705375867896,-500.0,0.00022985,2]
[311751251,1705375867906,-500.01,0.00022985,2]
[311751252,1705375867917,-500.0,0.00022985,2]
[311751253,1705375867928,-500.0,0.00022985,2]
[311751254,1705375867938,-500.0,0.00022985,2]
[311751255,1705375867948,-500.0,0.00022985,2]
[311751256,1705375867959,-500.0,0.00022985,2]
[311751257,1705375867969,-500.0,0.00022985,2]
[311751258,1705375867981,-500.0,0.00022985,2]
[311751259,1705375867991,-500.0,0.00022985,2]
[311751260,1705375868002,-500.0,0.00022985,2]
[311751261,1705375868012,-500.0,0.00022985,2]
[311751262,1705375868022,-500.0,0.00022985,2]
[311751263,1705375868033,-500.0,0.00022985,2]
[311751264,1705375868043,-500.0,0.00022985,2]
[311751265,1705375868054,-553.66840506,0.00022985,2]
[311751266,1705375868064,-500.0,0.00022985,2]
[311751267,1705375868075,-500.0,0.00022985,2]
[311751268,1705375868086,-500.0,0.00022985,2]
[311751269,1705375868096,-500.0,0.00022985,2]
[311751270,1705375868107,-500.0,0.00022985,2]
[311751271,1705375868117,-500.0,0.00022985,2]
[311751272,1705375868127,-500.0,0.00022985,2]
[311751273,1705375868138,-500.0,0.00022985,2]
[311751274,1705375868148,-507.06,0.00022985,2]
[311751275,1705375868159,-500.0,0.00022985,2]
[311751276,1705375868169,-500.0,0.00022985,2]
[311751277,1705375868180,-500.0,0.00022985,2]
[311751278,1705375868190,-500.0,0.00022985,2]
[311751279,1705375868200,-500.0,0.00022985,2]
[311751280,1705375868211,-500.0,0.00022985,2]
[311751281,1705375868220,-500.0,0.00022985,2]
[311751282,1705375868230,-500.0,0.00022985,2]
[311751283,1705375868240,-500.0,0.00022985,2]
[311751284,1705375868250,-500.0,0.00022985,2]
[311751285,1705375868259,-500.0,0.00022985,2]
[311751286,1705375868269,-500.0,0.00022985,2]
[311751287,1705375868279,-500.0,0.00022985,2]
[311751288,1705375868289,-500.0,0.00022985,2]
[311751289,1705375868298,-500.0,0.00022985,2]
[311751290,1705375868308,-924.4,0.00022985,2]
[311751291,1705375868318,-500.0,0.00022985,2]
[311751292,1705375868327,-687.74,0.00022985,2]
[311751293,1705375868337,-500.0,0.00022985,2]
[311751294,1705375868347,-500.0,0.00022985,2]
[311751295,1705375868356,-500.0,0.00022985,2]
[311751296,1705375868366,-500.0,0.00022985,2]
[311751297,1705375868376,-1062.4,0.00022985,2]
[311751298,1705375868386,-645.38,0.00022985,2]
[311751299,1705375868395,-500.0,0.00022985,2]
[311751300,1705375868405,-573.82,0.00022985,2]
[311751301,1705375868415,-500.0,0.00022985,2]
[311751302,1705375868425,-500.0,0.00022985,2]
[311751303,1705375868435,-900.0,0.00022985,2]
[311751304,1705375868445,-500.0,0.00022985,2]
[311751305,1705375868454,-500.0,0.00022985,2]
[311751306,1705375868466,-500.0,0.00022985,2]
[311751307,1705375868476,-1224.79,0.00022985,2]
[311751308,1705375868485,-500.0,0.00022985,2]
[311751309,1705375868495,-2490.48,0.00022985,2]
[311751310,1705375868505,-500.0,0.00022985,2]
[311751311,1705375868514,-500.0,0.00022985,2]
[311751312,1705375868524,-500.0,0.00022985,2]
[311751313,1705375868534,-500.0,0.00022985,2]
[311751314,1705375868543,-500.0,0.00022985,2]
[311751315,1705375868553,-500.0,0.00022985,2]
[311751316,1705375868563,-500.0,0.00022985,2]